bitfinex/quotes_ETHUSD_20251126
["timestamp","ask_amount","ask_price","bid_price","bid_amount"]
[1764152122725,0.6864,2914.0,2913.3,0.4634]
[1764152123635,0.6864,2914.0,2913.3,3.89587174]
[1764152124807,0.94359411,2914.2,2913.3,3.89587174]
[1764152124999,0.218,2914.2,2913.4,0.4634]
[1764152125205,0.4684,2914.1,2913.4,0.4634]
[1764152125924,0.4684,2914.1,2913.2,3.89601496]
[1764152126326,0.4684,2914.1,2913.2,5.43481496]
[1764152127104,0.31748201,2914.0,2913.2,2.0022]
[1764152127338,0.31748201,2914.0,2913.1,0.1476]
[1764152127633,0.4684,2913.9,2913.2,3.43254321]
[1764152128138,0.31838934,2913.8,2913.2,3.89594321]
[1764152128438,0.31838934,2913.7,2913.2,3.89594321]
[1764152128636,0.4684,2913.9,2913.3,0.4634]
[1764152128827,0.31844431,2913.8,2913.3,3.89586461]
[1764152129023,0.31844431,2913.7,2913.3,3.89586461]
[1764152129228,0.31844431,2913.6,2913.3,3.89586461]
[1764152129429,0.4684,2913.9,2913.3,3.89586461]
[1764152129430,0.4684,2913.9,2913.5,0.4963]
[1764152129628,1.05420896,2913.8,2913.5,0.4963]
[1764152129847,0.31914463,2913.7,2913.5,0.4963]
[1764152130019,0.31914463,2913.6,2913.5,0.4963]
[1764152130420,0.31914463,2913.6,2913.5,0.9597]
[1764152131232,1.05421767,2913.6,2913.5,0.9597]
[1764152132870,1.05421767,2913.6,2913.5,4.39199792]
[1764152133166,1.05421767,2913.6,2913.5,0.9597]
[1764152134167,1.97761348,2913.6,2913.5,4.39199792]
[1764152134371,1.97761348,2913.6,2913.5,0.9597]
[1764152134527,1.97761348,2913.6,2913.5,4.39199792]
[1764152135471,1.05421767,2913.6,2913.5,4.39199792]
[1764152135672,1.05421767,2913.6,2913.5,0.9597]
[1764152135830,1.97990117,2913.6,2913.5,0.9597]
[1764152136170,1.05421767,2913.6,2913.5,0.9597]
[1764152136533,1.05647511,2913.6,2913.5,0.9597]
[1764152137733,1.98225447,2913.6,2913.5,4.39199792]
[1764152137932,1.05647511,2913.6,2913.5,0.9597]
[1764152138160,1.05647511,2913.6,2913.5,5.42356206]
[1764152140959,0.32140207,2913.6,2913.5,5.42356206]
[1764152142905,0.32140207,2913.6,2913.5,5.64156206]
[1764152145655,0.73936751,2914.0,2913.5,14.0449579]
[1764152145901,0.32090516,2913.9,2913.6,0.467]
[1764152146109,0.32090516,2913.8,2913.7,1.5388]
[1764152146295,1.95878852,2914.6,2913.7,11.83498696]
[1764152146296,0.73928503,2914.3,2913.7,11.83498696]
[1764152146500,1.65337347,2914.6,2914.0,0.1812]
[1764152146501,0.32089233,2914.2,2914.0,0.1812]
[1764152146670,0.32089233,2914.1,2914.0,0.3992]
[1764152147113,0.32089233,2914.1,2914.0,0.8533]
[1764152147475,0.32089233,2914.1,2914.0,1.3203]
[1764152148272,0.32089233,2914.1,2914.0,4.75200899]
[1764152149241,0.32089233,2914.1,2914.0,4.53400899]
[1764152149541,0.32063043,2914.1,2914.0,4.75200899]
[1764152149918,0.31983043,2914.1,2914.0,4.75200899]
[1764152150241,0.002,2914.6,2914.0,8.18371798]
[1764152150444,0.002,2914.6,2914.4,0.4541]
[1764152151711,0.74072906,2914.6,2914.4,0.4541]
[1764152151926,0.002,2914.6,2914.4,0.4541]
[1764152152525,0.4842,2914.5,2914.1,3.89855033]
[1764152153025,0.4842,2914.5,2914.2,1.5388]
[1764152153914,0.0037,2914.3,2914.2,1.5388]
[1764152157146,0.4617,2914.3,2914.2,1.5388]
[1764152157552,0.0037,2914.3,2914.2,1.5388]
[1764152157753,0.4617,2914.3,2914.1,1.5388]
[1764152158051,0.458,2914.3,2914.1,1.5388]
[1764152158218,0.4,2914.2,2914.1,1.5388]
[1764152159730,0.8574,2914.2,2914.1,1.5388]
[1764152160111,0.4,2914.2,2914.1,1.5388]
[1764152161550,0.002,2914.6,2914.1,5.60569122]
[1764152161753,0.002,2914.6,2914.5,0.4541]
[1764152161958,0.32303806,2914.6,2914.5,0.4541]
[1764152162132,1.18043806,2914.6,2914.1,4.97039122]
[1764152162338,0.32103806,2914.5,2914.1,4.97039122]
[1764152162545,0.4574,2914.5,2914.1,4.97039122]
[1764152162920,0.4574,2914.5,2914.1,4.97034808]
[1764152163255,0.32110594,2914.4,2914.1,4.97034808]
[1764152163455,0.4574,2914.5,2914.1,4.97034808]
[1764152163755,0.32111532,2914.4,2914.2,1.5388]
[1764152163951,0.4574,2914.5,2914.2,1.5388]
[1764152164257,0.32111549,2914.4,2914.2,1.5388]
[1764152164556,0.4574,2914.5,2914.2,1.5388]
[1764152164859,0.4006,2914.3,2914.2,1.5388]
[1764152165357,0.8574,2914.3,2914.2,1.5388]
[1764152165649,1.17850597,2914.3,2914.2,1.5388]
[1764152165859,0.32110597,2914.3,2914.2,2.0096]
[1764152166046,0.002,2914.6,2914.2,5.44107347]
[1764152166246,0.32113276,2914.5,2914.2,5.44107347]
[1764152166558,0.4674,2914.6,2914.2,2.0096]
[1764152166559,0.32113276,2914.4,2914.2,2.0096]
[1764152166768,0.32113276,2914.3,2914.2,2.0096]
[1764152167354,0.32113276,2914.3,2914.2,5.93207347]
[1764152167556,0.002,2914.6,2914.2,9.36354694]
[1764152167774,0.002,2914.6,2914.5,0.4708]
[1764152168128,0.002,2914.6,2914.5,0.9618]
[1764152169222,0.002,2914.6,2914.2,3.43147347]
[1764152169223,0.196,2914.6,2914.2,3.43147347]
[1764152169555,0.1964,2914.3,2914.2,0.217]
[1764152169759,0.1964,2914.3,2914.2,3.64847347]
[1764152169959,0.1964,2914.3,2914.1,3.43152547]
[1764152170255,0.1941,2914.2,2914.0,3.432683]
[1764152170446,0.1964,2914.1,2914.0,3.432683]
[1764152171161,3.16854855,2914.3,2914.0,3.903483]
[1764152171354,0.3885,2914.1,2914.0,3.432683]
[1764152173858,0.002,2914.3,2914.0,0.4718]
[1764152174052,0.002,2914.3,2914.0,0.9676]
[1764152174457,0.002,2914.3,2914.0,0.4718]
[1764152174643,0.0012,2914.3,2914.0,0.4718]
[1764152174848,0.0012,2914.3,2914.0,0.9676]
[1764152175570,0.0012,2914.3,2914.2,0.4824]
[1764152175737,0.0012,2914.3,2914.2,4.13087347]
[1764152175936,0.0012,2914.3,2914.2,4.62667347]
[1764152177471,0.002,2914.6,2914.3,0.405504]
[1764152177670,0.002,2914.6,2914.5,0.887904]
[1764152177876,0.002,2914.6,2914.5,4.81482426]
[1764152178444,0.002,2914.6,2914.5,5.54041837]
[1764152180378,0.002,2914.6,2914.5,5.75741837]
[1764152181066,0.002,2914.6,2914.5,7.29621837]
[1764152182547,0.002,2914.6,2914.5,7.07921837]
[1764152182743,0.002,2914.6,2914.5,5.94812026]
[1764152183052,0.002,2914.6,2914.5,6.16512026]
[1764152183467,0.002,2914.6,2914.5,5.66932026]
[1764152184373,0.002,2914.6,2914.5,5.45232026]
[1764152184577,0.002,2914.6,2914.5,5.66932026]
[1764152185851,0.002,2914.6,2914.5,5.45232026]
[1764152186053,0.002,2914.6,2914.5,5.66932026]
[1764152186288,0.002,2914.6,2914.5,6.16512026]
[1764152186488,0.002,2914.6,2914.5,5.66932026]
[1764152187102,0.8959,2914.6,2914.5,4.96992026]
[1764152187718,0.4608,2914.6,2914.5,4.96992026]
[1764152188507,0.8959,2914.6,2914.5,4.96992026]
[1764152192828,0.8959,2914.6,2914.5,1.5388]
[1764152193028,0.8959,2914.6,2914.5,4.96992026]
[1764152199326,0.8951,2914.6,2914.5,4.96992026]
[1764152200904,0.8951,2914.6,2914.5,1.5388]
[1764152201142,0.8951,2914.6,2914.5,4.96992026]
[1764152201537,0.0012,2914.6,2914.5,4.96992026]
[1764152201738,0.0012,2914.6,2914.5,5.45232026]
[1764152202251,0.4379,2914.6,2914.5,4.96992026]
[1764152205664,0.8921,2914.6,2914.5,1.5388]
[1764152206223,3.59392301,2914.6,2914.5,1.5388]
[1764152208547,0.72559411,2914.5,2914.3,0.001]
[1764152208752,3.75529589,2914.4,2914.3,0.001]
[1764152208958,4.20949589,2914.4,2914.3,0.001]
[1764152209159,1.50767288,2914.4,2914.3,0.001]
[1764152213851,4.20949589,2914.4,2914.3,0.001]
[1764152214041,4.20949589,2914.4,2914.3,1.5398]
[1764152214948,1.04617288,2914.4,2914.3,1.5398]
[1764152215148,1.04617288,2914.4,2914.3,2.0166]
[1764152215541,0.0012,2914.6,2914.3,2.4975]
[1764152215751,0.0012,2914.6,2914.5,3.90792026]
[1764152215960,0.0012,2914.6,2914.5,4.12492026]
[1764152216157,0.0012,2914.6,2914.5,4.60582026]
[1764152217940,0.0012,2914.6,2914.5,4.43265445]
[1764152220970,0.0012,2914.6,2914.5,3.95175445]
[1764152223043,0.9595,2914.6,2914.3,8.40242378]
[1764152223239,0.0012,2914.6,2914.5,3.89992026]
[1764152223871,0.4894,2914.6,2914.5,3.43112026]
[1764152224076,0.0012,2914.6,2914.5,3.43112026]
[1764152224291,0.4886,2914.6,2914.5,3.43112026]
[1764152225170,0.0004,2914.6,2914.5,3.43112026]
[1764152225376,0.0004,2914.6,2914.4,3.43123393]
[1764152225377,0.4886,2914.6,2914.4,6.86247192]
[1764152225578,2.24278325,2914.5,2914.3,0.001]
[1764152225782,0.4882,2914.4,2914.3,0.001]
[1764152225943,0.9583,2914.4,2914.3,0.001]
[1764152226266,1.27904176,2914.4,2914.3,0.001]
[1764152227249,0.9583,2914.4,2914.3,0.001]
[1764152228647,0.0004,2914.6,2914.3,0.001]
[1764152228857,0.0004,2914.6,2914.5,0.4688]
[1764152229377,0.0004,2914.6,2914.5,3.89992026]
[1764152230581,0.4886,2914.6,2914.4,3.43122218]
[1764152232386,0.4886,2914.6,2914.3,6.86370169]
[1764152234255,0.4886,2914.6,2914.3,0.001]
[1764152234455,0.4886,2914.6,2914.5,0.4694]
[1764152234456,0.0004,2914.6,2914.5,0.4694]
[1764152234857,0.0004,2914.6,2914.5,1.145]
[1764152236274,0.0004,2914.6,2914.5,4.57612026]
[1764152241499,0.0004,2914.6,2914.5,5.05412026]
[1764152242762,0.0004,2914.6,2914.5,6.59292026]
[1764152243907,0.0004,2914.6,2914.5,6.99842426]
[1764152245393,0.0004,2914.6,2914.5,7.72401837]
[1764152245564,0.002,2915.2,2914.5,14.17401837]
[1764152245768,0.002,2915.2,2915.1,1.063404]
[1764152245769,1e-08,2915.2,2915.1,1.063404]
[1764152246002,1e-08,2915.2,2915.1,1.280404]
[1764152246164,1e-08,2915.2,2915.1,1.739004]
[1764152247112,1e-08,2915.2,2915.1,4.76391405]
[1764152248777,0.47520001,2916.2,2915.1,14.5965562]
[1764152249003,0.47520001,2916.2,2915.2,0.4586]
[1764152249719,0.47520001,2916.2,2915.3,1.03077375]
[1764152250381,0.47520001,2916.2,2915.4,0.217]
[1764152250989,0.47520001,2916.2,2915.5,6.8598868]
[1764152251984,0.6522,2915.6,2915.5,3.6469434]
[1764152252190,0.6522,2915.6,2915.5,5.1869434]
[1764152252386,1.1272,2915.6,2915.5,5.1869434]
[1764152252708,1.1272,2915.6,2915.5,4.9699434]
[1764152252900,1.1272,2915.6,2915.5,3.4299434]
[1764152253095,1.1272,2915.6,2915.4,3.43003874]
[1764152253294,0.476,2915.5,2915.4,3.43003874]
[1764152253524,0.4529,2915.5,2915.4,3.43003874]
[1764152257118,0.4757,2915.7,2915.4,7.32949979]
[1764152257321,0.476,2916.1,2915.6,0.4694]
[1764152257484,0.72559411,2916.6,2915.7,0.4694]
[1764152257696,0.32002081,2916.5,2915.7,2.0094]
[1764152257916,0.476,2916.5,2915.8,6.859181]
[1764152258227,0.476,2916.5,2915.8,3.4295905]
[1764152258405,0.6514,2915.9,2915.8,3.4295905]
[1764152258608,0.476,2916.5,2915.8,8.399181]
[1764152258904,0.1536,2916.7,2915.9,1.54]
[1764152258905,0.79611729,2916.4,2915.9,1.54]
[1764152259109,0.4529,2916.0,2915.9,1.51205464]
[1764152259529,0.9286,2916.0,2915.9,1.51205464]
[1764152259994,0.9286,2916.0,2915.9,4.94152753]
[1764152262426,0.9286,2916.0,2915.9,1.51205464]
[1764152263431,1.24913845,2916.0,2915.9,1.51205464]
[1764152264517,1.24913845,2916.0,2915.8,1.48205464]
[1764152264718,0.4904,2915.9,2915.8,1.48205464]
[1764152264923,1.1304,2915.9,2915.7,1.48205464]
[1764152265232,0.6436,2915.9,2915.7,1.48205464]
[1764152265408,0.9739,2915.8,2915.7,1.48205464]
[1764152269545,1.29484322,2915.8,2915.7,1.48205464]
[1764152270432,1.29484322,2915.8,2915.6,3.42981989]
[1764152270637,0.9738,2915.7,2915.6,3.42981989]
[1764152271512,0.9738,2915.7,2915.5,4.91194668]
[1764152271745,0.0049,2915.6,2915.5,4.91194668]
[1764152271952,0.4953,2915.6,2915.5,4.91194668]
[1764152272537,0.92577936,2916.7,2915.5,11.46267884]
[1764152272743,1.06138727,2916.6,2915.8,0.4565]
[1764152272942,0.4904,2916.7,2915.8,0.4565]
[1764152273116,0.81161534,2916.6,2915.9,0.217]
[1764152273316,0.32121534,2916.5,2915.9,0.7074]
[1764152273526,0.32041534,2916.4,2915.9,0.7074]
[1764152273726,0.4904,2916.5,2915.9,0.7074]
[1764152273913,0.4904,2916.5,2915.9,0.217]
[1764152274114,0.3963,2916.0,2915.9,0.217]
[1764152274520,0.8858,2916.0,2915.9,3.64647289]
[1764152274726,0.3963,2916.0,2915.9,3.42947289]
[1764152275128,0.3963,2916.0,2915.9,3.91897289]
[1764152275524,0.4895,2916.2,2915.9,7.34844578]
[1764152275842,0.4904,2916.6,2916.1,0.4565]
[1764152276220,0.3963,2916.2,2915.9,7.34844578]
[1764152276718,0.3963,2916.2,2916.0,0.4904]
[1764152278146,0.3963,2916.2,2916.1,3.42923768]
[1764152278338,0.4895,2916.4,2916.1,7.31497536]
[1764152278844,0.3973,2916.2,2916.1,4.91642643]
[1764152279661,0.8859,2916.2,2916.1,1.03068875]
[1764152279812,0.8859,2916.2,2915.9,3.42938136]
[1764152280017,0.4904,2916.1,2915.9,4.15497547]
[1764152280254,0.3963,2916.0,2915.9,4.15497547]
[1764152280673,0.3963,2916.0,2915.9,0.72559411]
[1764152280983,0.3963,2916.0,2915.8,0.001]
[1764152280984,0.8858,2916.0,2915.8,0.001]
[1764152281182,0.2023,2915.9,2915.8,0.001]
[1764152281393,0.6927,2915.9,2915.8,3.43058945]
[1764152282170,0.6927,2915.9,2915.8,0.001]
[1764152282789,0.0049,2915.9,2915.8,0.001]
[1764152285488,0.81034177,2915.9,2915.8,0.001]
[1764152285658,0.32624177,2915.9,2915.8,0.001]
[1764152289120,0.32134177,2915.9,2915.8,0.4619]
[1764152291508,0.32134177,2915.9,2915.8,5.87094514]
[1764152293120,0.32134177,2915.9,2915.8,5.37354514]
[1764152293419,0.217,2916.4,2915.8,9.30053564]
[1764152293627,0.32137411,2916.3,2915.9,1.48205464]
[1764152293790,0.002,2916.5,2916.2,0.4609]
[1764152293994,0.32132135,2916.4,2916.2,0.217]
[1764152294195,0.4631,2916.5,2916.2,0.217]
[1764152294426,0.32125222,2916.4,2916.3,0.4631]
[1764152294627,0.002,2916.5,2916.3,0.4631]
[1764152294933,0.4317,2916.4,2916.3,0.4631]
[1764152295331,0.002,2916.5,2916.4,3.90108492]
[1764152295640,0.32319698,2916.5,2916.4,3.90108492]
[1764152295936,0.32319698,2916.5,2916.4,4.81967903]
[1764152297303,1.21569698,2916.5,2916.4,4.34747903]
[1764152297704,0.002,2916.5,2916.4,5.27677903]
[1764152298226,0.0012,2916.5,2916.4,5.27677903]
[1764152299920,0.0012,2916.5,2916.4,4.81967903]
[1764152300122,0.0012,2916.5,2916.4,5.27677903]
[1764152300324,0.4392,2916.5,2916.4,4.34747903]
[1764152300847,0.0012,2916.5,2916.4,4.34747903]
[1764152301027,0.0012,2916.5,2916.4,4.81967903]
[1764152301234,0.0012,2916.5,2916.4,5.27677903]
[1764152301605,0.0012,2916.5,2916.4,4.81967903]
[1764152305257,0.4392,2916.5,2916.4,4.34747903]
[1764152305464,0.0012,2916.5,2916.4,4.81967903]
[1764152306571,0.0012,2916.5,2916.4,5.27677903]
[1764152307274,0.4392,2916.5,2916.4,4.34747903]
[1764152307784,0.0012,2916.5,2916.4,4.81967903]
[1764152308566,0.0012,2916.5,2916.4,5.27677903]
[1764152308970,0.0012,2916.5,2916.4,4.81967903]
[1764152310294,0.0012,2916.5,2916.4,4.34747903]
[1764152310456,0.0012,2916.5,2916.4,4.81967903]
[1764152311883,0.0012,2916.5,2916.4,4.82067903]
[1764152313587,0.0012,2916.5,2916.4,5.27777903]
[1764152313881,0.0012,2916.5,2916.4,4.82067903]
[1764152316871,0.0012,2916.5,2916.4,5.27777903]
[1764152318760,1e-08,2916.9,2916.5,1.13109811]
[1764152319063,0.002,2917.1,2916.9,1.13109811]
[1764152319379,0.002,2917.1,2917.0,4.51979953]
[1764152319897,0.002,2917.1,2917.0,5.1142407]
[1764152320501,0.002,2917.1,2917.0,8.54242033]
[1764152321978,0.002,2917.1,2917.0,10.02447497]
[1764152322963,0.0012,2917.1,2917.0,10.02447497]
[1764152323706,0.0012,2917.1,2917.0,9.80747497]
[1764152324007,0.0012,2917.1,2917.0,10.02447497]
[1764152325416,0.0012,2917.1,2917.0,9.80747497]
[1764152325616,0.0012,2917.1,2917.0,10.02447497]
[1764152326988,0.0012,2917.1,2917.0,6.59937944]
[1764152327199,0.0012,2917.1,2917.0,5.73677544]
[1764152327506,0.0012,2917.1,2917.0,6.23507544]
[1764152329519,0.0012,2917.1,2917.0,6.01807544]
[1764152329687,0.0012,2917.1,2917.0,6.23507544]
[1764152336500,0.0012,2917.1,2917.0,5.51977544]
[1764152336702,0.0012,2917.1,2917.0,5.73677544]
[1764152337300,0.0012,2917.1,2917.0,6.23507544]
[1764152338034,0.0012,2917.1,2917.0,8.93457686]
[1764152338206,0.0012,2917.1,2917.0,5.73677544]
[1764152338837,0.4946456,2917.5,2917.0,13.0914347]
[1764152339010,0.4946456,2917.5,2917.1,1.94995464]
[1764152340536,0.92409411,2918.2,2917.2,10.2838338]
[1764152340836,0.4919,2917.3,2917.2,3.4279446]
[1764152344238,0.4068,2917.5,2917.2,6.8558892]
[1764152344742,0.4911,2917.3,2916.6,6.45]
[1764152344926,0.4954,2916.7,2916.6,3.64564979]
[1764152345446,0.9048,2916.7,2916.6,3.64564979]
[1764152346136,0.9048,2916.7,2916.6,3.42864979]
[1764152347110,0.4954,2916.7,2916.6,3.42864979]
[1764152347343,0.9048,2916.7,2916.6,3.42864979]
[1764152347560,0.4946,2916.7,2916.6,3.42864979]
[1764152350760,0.4094,2916.9,2916.6,8.83199958]
[1764152351127,0.4094,2916.9,2916.6,7.32199958]
[1764152351949,0.4937,2916.7,2916.6,3.42864979]
[1764152353825,0.904,2916.7,2916.6,3.42864979]
[1764152354737,0.904,2916.7,2916.6,4.93864979]
[1764152358348,0.904,2916.7,2916.4,0.001]
[1764152358571,0.4709,2916.5,2916.4,3.42988248]
[1764152358774,0.4709,2916.5,2916.4,0.001]
[1764152358968,0.9038,2916.5,2916.4,3.42988492]
[1764152361890,0.9038,2916.5,2916.4,0.001]
[1764152369327,0.4709,2916.5,2916.4,0.001]
[1764152369480,0.9038,2916.5,2916.4,0.001]
[1764152372249,0.903,2916.5,2916.4,0.001]
[1764152374453,0.903,2916.5,2916.4,4.93988492]
[1764152380290,1.22420135,2916.5,2916.4,4.93988492]
[1764152380652,1.22420135,2916.5,2916.4,1.511]
[1764152380858,1.94979546,2916.5,2916.4,0.001]
[1764152381066,2.35529946,2916.5,2916.4,0.001]
[1764152381265,3.0954848,2916.5,2916.4,0.001]
[1764152381675,3.3124848,2916.5,2916.4,0.001]
[1764152382568,3.3144848,2916.5,2916.4,0.001]
[1764152390532,6.6520618,2916.5,2916.4,0.001]
[1764152391404,10.08082915,2916.5,2916.4,0.001]
[1764152391608,6.6520618,2916.5,2916.4,0.001]
[1764152392596,10.08082915,2916.5,2916.4,0.001]
[1764152392792,10.21831241,2916.5,2916.4,0.001]
[1764152393713,11.14115464,2916.5,2916.4,0.001]
[1764152393912,1.50428669,2916.5,2916.4,0.001]
[1764152394127,1.44290135,2916.5,2916.4,0.001]
[1764152394489,1.84840535,2916.5,2916.4,0.001]
[1764152395100,2.57399946,2916.5,2916.4,0.001]
[1764152395294,3.31269634,2916.5,2916.4,0.001]
[1764152397113,3.31189634,2916.5,2916.4,0.001]
[1764152397308,6.64947334,2916.5,2916.4,0.001]
[1764152401902,10.07824069,2916.5,2916.4,0.001]
[1764152402441,0.0046,2916.2,2915.5,0.001]
[1764152402603,0.0046,2916.2,2914.3,0.001]
[1764152402604,0.405504,2915.4,2914.3,0.001]
[1764152402806,3.98455496,2914.4,2914.3,0.001]
[1764152403130,5.84370686,2914.4,2914.3,0.001]
[1764152403334,5.10435896,2914.4,2914.3,0.001]
[1764152403861,5.84250553,2914.4,2914.3,0.001]
[1764152404203,5.10435896,2914.4,2914.3,0.001]
[1764152404529,9.17916532,2914.4,2914.3,0.001]
[1764152404716,8.44193596,2914.4,2914.3,0.001]
[1764152406840,1.17099411,2914.4,2914.3,0.001]
[1764152407003,1.38799411,2914.4,2914.3,1.52358368]
[1764152407208,1.38799411,2914.4,2914.3,2.98032565]
[1764152408410,1.88529411,2914.4,2914.3,0.001]
[1764152408622,4.58852378,2914.4,2914.3,0.001]
[1764152408816,4.58852378,2914.4,2914.3,2.4446226]
[1764152409140,4.90779863,2914.4,2914.3,2.4446226]
[1764152409331,4.90779863,2914.4,2914.3,0.001]
[1764152411540,5.31330263,2914.4,2914.3,0.001]
[1764152411771,8.65087963,2914.4,2914.3,0.001]
[1764152414376,1.13109811,2914.3,2914.2,0.001]
[1764152414674,5.71764996,2914.3,2914.2,0.001]
[1764152418156,5.71723498,2914.3,2914.2,0.001]
[1764152418376,1.90825798,2914.3,2914.2,0.001]
[1764152418576,8.16606465,2914.3,2914.2,0.001]
[1764152418954,7.09192465,2914.3,2914.2,0.001]
[1764152419142,7.56332465,2914.3,2914.2,0.001]
[1764152419542,4.42298365,2914.3,2914.2,0.001]
[1764152419739,8.23196065,2914.3,2914.2,0.001]
[1764152420670,7.74260065,2914.3,2914.2,0.001]
[1764152421848,8.14730465,2914.3,2914.2,0.001]
[1764152423677,4.15318765,2914.3,2914.2,0.4927]
[1764152424184,8.16606465,2914.3,2914.2,0.001]
[1764152424347,8.63746465,2914.3,2914.2,0.001]
[1764152424881,5.29988765,2914.3,2914.2,0.001]
[1764152425280,6.03605079,2914.3,2914.2,0.001]
[1764152425481,5.56465079,2914.3,2914.2,0.001]
[1764152426185,7.77962479,2914.3,2914.2,0.001]
[1764152427177,5.56465079,2914.3,2914.2,0.001]
[1764152427484,5.56465079,2914.3,2914.2,0.4927]
[1764152427485,1.05502301,2914.3,2914.2,0.4927]
[1764152427671,0.53585987,2914.3,2914.2,0.9907]
[1764152427855,0.31885987,2914.3,2914.2,0.9907]
[1764152428048,0.53585987,2914.3,2914.2,0.9907]
[1764152428653,0.31885987,2914.3,2914.2,0.9907]
[1764152428870,0.53585987,2914.3,2914.2,0.9907]
[1764152430513,0.53585987,2914.3,2914.2,0.4927]
[1764152430711,0.53585987,2914.3,2914.2,0.9907]
[1764152432236,1.27543817,2914.3,2914.2,0.9907]
[1764152433224,1.27543817,2914.3,2914.2,4.42217347]
[1764152433527,0.53585987,2914.3,2914.2,0.9907]
[1764152434197,1.27543817,2914.3,2914.2,0.4927]
[1764152434399,0.53585987,2914.3,2914.2,0.4927]
[1764152434625,1.27543817,2914.3,2914.2,0.4927]
[1764152434803,1.27543817,2914.3,2914.2,0.9907]
[1764152435002,0.53585987,2914.3,2914.2,0.9907]
[1764152435320,1.27543817,2914.3,2914.2,0.9907]
[1764152435522,0.53585987,2914.3,2914.2,0.9907]
[1764152435728,0.53785987,2914.3,2914.2,0.9907]
[1764152436544,0.53785987,2914.3,2914.2,0.4927]
[1764152437227,0.53785987,2914.3,2914.2,0.9907]
[1764152440339,0.53785987,2914.3,2914.2,4.42217347]
[1764152440553,0.32085987,2914.3,2914.2,4.42217347]
[1764152440909,0.002,2914.3,2914.2,5.1626486]
[1764152446657,0.0012,2914.3,2914.2,5.1626486]
[1764152451557,0.0012,2914.3,2914.2,6.6726486]
[1764152453367,0.0012,2914.3,2914.2,5.93217347]
[1764152456456,0.0012,2914.3,2914.2,5.43417347]
[1764152456662,0.0012,2914.3,2914.2,5.89697347]
[1764152457168,0.0012,2914.3,2914.2,5.43417347]
[1764152459274,0.0012,2914.3,2914.2,4.94247347]
[1764152459441,0.0012,2914.3,2914.2,5.43247347]
[1764152460150,0.9364,2914.3,2914.2,1.511]
[1764152460469,1.25785379,2914.3,2914.2,1.511]
[1764152461610,1.47485379,2914.3,2914.2,1.511]
[1764152463570,1.47485379,2914.3,2914.2,0.001]
[1764152463784,4.90367757,2914.3,2914.2,0.001]
[1764152464115,5.64448845,2914.3,2914.2,0.001]
[1764152464686,6.04999245,2914.3,2914.2,0.001]
[1764152470519,3.34676278,2914.3,2914.2,0.001]
[1764152471341,3.34596278,2914.3,2914.2,0.001]
[1764152471690,3.34559729,2914.3,2914.2,0.001]
[1764152474337,2.25909329,2914.3,2914.2,0.001]
[1764152474626,2.93599329,2914.3,2914.2,0.001]
[1764152477339,3.337577,2914.0,2913.9,0.001]
[1764152477512,8.17770099,2914.0,2913.9,0.001]
[1764152477708,5.54177429,2914.0,2913.9,0.001]
[1764152477912,2.42119729,2914.0,2913.9,0.001]
[1764152478108,2.88109729,2914.0,2913.9,0.001]
[1764152484045,6.21867429,2914.0,2913.9,0.001]
[1764152484353,7.14315724,2914.0,2913.9,0.001]
[1764152484854,1.13109811,2913.9,2913.5,0.001]
[1764152485051,1.13109811,2913.9,2912.5,0.31978919]
[1764152485052,0.405504,2913.2,2912.5,0.13758919]
[1764152485221,7.11410181,2912.6,2912.5,0.13758919]
[1764152485423,1.13109811,2912.5,2911.8,0.4619]
[1764152485647,0.3210883,2912.4,2911.5,0.4619]
[1764152485852,0.72559411,2912.2,2911.5,0.4619]
[1764152486152,0.72559411,2912.2,2910.9,3.43527852]
[1764152486153,0.4742,2911.6,2910.9,0.00612529]
[1764152486352,0.217,2911.5,2910.9,0.4619]
[1764152486654,0.217,2911.5,2910.8,0.4619]
[1764152486655,0.32062431,2911.4,2910.8,0.4619]
[1764152487364,0.217,2911.5,2910.8,0.4619]
[1764152487365,0.6769,2911.5,2910.8,0.4619]
[1764152487527,0.6769,2911.5,2910.4,3.61549768]
[1764152487528,0.4669,2910.9,2910.4,0.17958891]
[1764152487851,0.218,2910.8,2910.4,0.64148891]
[1764152488349,0.218,2910.8,2910.4,0.17958891]
[1764152488550,0.218,2910.8,2910.3,0.1822]
[1764152488551,0.218,2910.8,2910.7,0.4602]
[1764152488950,0.6846,2910.8,2910.3,4.08013217]
[1764152489152,0.218,2910.8,2910.4,0.4619]
[1764152489522,0.218,2910.8,2910.7,0.4602]
[1764152490052,0.218,2910.8,2910.7,0.9221]
[1764152490668,0.405504,2911.7,2910.7,0.9221]
[1764152490871,0.53693335,2911.6,2910.9,3.43536363]
[1764152491044,0.218,2911.6,2910.4,6.87190764]
[1764152491244,0.6779,2911.6,2910.7,0.4619]
[1764152492162,0.6779,2911.6,2910.5,0.4619]
[1764152492748,1.18403719,2911.5,2910.3,0.1822]
[1764152492951,0.865404,2911.5,2910.3,4.08013478]
[1764152493162,0.4599,2911.4,2910.3,4.08013478]
[1764152493348,0.405504,2911.3,2910.4,0.4619]
[1764152493555,0.405504,2911.1,2910.4,0.4619]
[1764152493745,0.218,2911.0,2910.4,0.4619]
[1764152494134,0.4666,2910.5,2910.1,0.17963299]
[1764152494471,0.218,2911.0,2910.2,0.6128]
[1764152494472,0.405504,2910.9,2910.2,0.6128]
[1764152494765,0.405504,2910.9,2910.4,0.4602]
[1764152495269,0.405504,2910.9,2910.5,0.4619]
[1764152496066,0.404704,2910.9,2910.5,0.4619]
[1764152496363,0.218,2910.8,2910.5,0.4619]
[1764152496562,0.53890023,2911.4,2911.1,0.4602]
[1764152496877,0.53608565,2911.3,2910.7,0.4602]
[1764152497069,0.218,2911.3,2910.7,0.4602]
[1764152497251,0.6779,2911.3,2910.7,0.4602]
[1764152497838,0.4599,2911.7,2910.8,0.4619]
[1764152498074,0.31800121,2911.6,2910.8,0.4619]